bitfinex/quotes_BTCUSD_20250825
["timestamp","ask_amount","ask_price","bid_price","bid_amount"]
[1756124043181,0.1980085,111390.0,111380.0,0.26261377]
[1756124043395,0.1980085,111390.0,111380.0,0.26459377]
[1756124045004,0.19801272,111390.0,111380.0,0.26261377]
[1756124045208,0.19801272,111390.0,111380.0,0.25954377]
[1756124045415,0.24698246,111390.0,111380.0,0.10638377]
[1756124045618,0.24698246,111390.0,111380.0,0.01949902]
[1756124045826,0.27397146,111390.0,111380.0,0.01949902]
[1756124046260,0.22500305,111390.0,111380.0,0.02147902]
[1756124046469,0.22346305,111390.0,111380.0,0.02679358]
[1756124046882,0.01692472,111390.0,111380.0,0.11504509]
[1756124047301,8.648e-05,111390.0,111380.0,0.11504509]
[1756124049206,0.01413526,111390.0,111380.0,0.11504509]
[1756124051562,0.01413526,111390.0,111380.0,0.11004509]
[1756124051703,8.648e-05,111390.0,111380.0,0.11004509]
[1756124051905,8.648e-05,111390.0,111380.0,0.11280053]
[1756124052126,8.648e-05,111390.0,111380.0,0.11367833]
[1756124052552,8.648e-05,111390.0,111380.0,0.11504509]
[1756124053377,8.648e-05,111390.0,111380.0,0.11704509]
[1756124056388,8.648e-05,111390.0,111380.0,0.11567833]
[1756124056920,8.648e-05,111390.0,111380.0,0.38387833]
[1756124057176,8.648e-05,111390.0,111380.0,0.38163377]
[1756124059885,8.648e-05,111390.0,111380.0,0.56119922]
[1756124061527,8.648e-05,111390.0,111380.0,0.29299922]
[1756124061676,8.648e-05,111390.0,111380.0,0.31998122]
[1756124066218,8.648e-05,111390.0,111380.0,0.51998122]
[1756124067404,8.648e-05,111390.0,111380.0,0.67374122]
[1756124067781,8.648e-05,111390.0,111380.0,0.66874122]
[1756124067987,8.648e-05,111390.0,111380.0,0.66674122]
[1756124068394,8.648e-05,111390.0,111380.0,0.66974122]
[1756124068854,8.648e-05,111390.0,111380.0,0.67462122]
[1756124070091,8.648e-05,111390.0,111380.0,0.52098122]
[1756124070271,0.18117581,111390.0,111380.0,0.12191675]
[1756124070502,0.00162648,111390.0,111380.0,0.24857475]
[1756124070832,0.00162648,111390.0,111380.0,0.26602377]
[1756124071003,0.00162648,111390.0,111380.0,0.27134377]
[1756124071452,0.18117581,111390.0,111380.0,0.27130377]
[1756124071687,0.00162648,111390.0,111380.0,0.27130377]
[1756124071896,0.00162648,111390.0,111380.0,0.53950377]
[1756124072114,8.648e-05,111390.0,111380.0,0.53950377]
[1756124079325,8.648e-05,111390.0,111380.0,0.53394377]
[1756124079326,0.18117581,111390.0,111380.0,0.53394377]
[1756124079535,0.18117581,111390.0,111380.0,0.38058377]
[1756124079773,0.00162648,111390.0,111380.0,0.53402377]
[1756124079979,8.648e-05,111390.0,111380.0,0.53902377]
[1756124080209,8.648e-05,111390.0,111380.0,0.71858922]
[1756124081239,8.648e-05,111390.0,111380.0,0.53902377]
[1756124081468,8.648e-05,111390.0,111380.0,0.53602377]
[1756124081877,8.648e-05,111390.0,111380.0,0.53802377]
[1756124082299,8.648e-05,111390.0,111380.0,0.53306377]
[1756124082725,8.648e-05,111390.0,111380.0,0.53506377]
[1756124088557,8.648e-05,111390.0,111380.0,0.53518377]
[1756124088806,8.648e-05,111390.0,111380.0,0.38158377]
[1756124088807,0.18066581,111390.0,111380.0,0.38158377]
[1756124089039,0.18066581,111390.0,111380.0,0.53010377]
[1756124089463,0.00111648,111390.0,111380.0,0.53315377]
[1756124089638,0.00111648,111390.0,111380.0,0.37963377]
[1756124089850,0.18066581,111390.0,111380.0,0.53319377]
[1756124090247,0.00111648,111390.0,111380.0,0.53319377]
[1756124090492,0.18066581,111390.0,111380.0,0.37963377]
[1756124090742,0.18066581,111390.0,111380.0,0.53319377]
[1756124091159,8.648e-05,111390.0,111380.0,0.53514377]
[1756124091372,0.00162648,111390.0,111380.0,0.53514377]
[1756124091589,8.648e-05,111390.0,111380.0,0.53514377]
[1756124093765,0.00162648,111390.0,111380.0,0.53514377]
[1756124094415,8.648e-05,111390.0,111380.0,0.53514377]
[1756124094772,8.648e-05,111390.0,111380.0,0.71470922]
[1756124095385,8.648e-05,111390.0,111380.0,0.53514377]
[1756124096286,8.648e-05,111390.0,111380.0,0.71470922]
[1756124097824,8.648e-05,111390.0,111380.0,0.74169022]
[1756124098441,8.648e-05,111390.0,111380.0,0.73969022]
[1756124098862,8.648e-05,111390.0,111380.0,0.74069022]
[1756124099609,8.648e-05,111390.0,111380.0,0.82131648]
[1756124100256,8.648e-05,111390.0,111380.0,1.45831648]
[1756124100893,8.648e-05,111390.0,111380.0,1.38069022]
[1756124101280,8.648e-05,111390.0,111380.0,1.38269022]
[1756124101684,8.648e-05,111390.0,111380.0,1.38669022]
[1756124101934,8.648e-05,111390.0,111380.0,1.46735442]
[1756124102764,8.648e-05,111390.0,111380.0,2.32504094]
[1756124102911,8.648e-05,111390.0,111380.0,2.39437674]
[1756124103292,2.342e-05,111390.0,111380.0,2.39437674]
[1756124103515,2.342e-05,111390.0,111380.0,2.39905774]
[1756124103720,2.342e-05,111390.0,111380.0,2.51179581]
[1756124103938,2.342e-05,111390.0,111380.0,1.50054929]
[1756124104140,2.342e-05,111390.0,111380.0,2.39917774]
[1756124104293,2.342e-05,111390.0,111380.0,2.51199073]
[1756124104927,2.342e-05,111390.0,111380.0,1.50434421]
[1756124105135,2.342e-05,111390.0,111380.0,2.05430421]
[1756124105346,2.342e-05,111390.0,111380.0,1.90430421]
[1756124105553,2.342e-05,111390.0,111380.0,2.91199073]
[1756124105796,2.342e-05,111390.0,111380.0,1.90054421]
[1756124106003,2.342e-05,111390.0,111380.0,2.91327073]
[1756124106211,2.342e-05,111390.0,111380.0,2.05558421]
[1756124107285,0.07110163,111420.0,111400.0,0.73698223]
[1756124107519,0.0711881,111420.0,111410.0,0.10433377]
[1756124107788,0.0721481,111420.0,111410.0,0.25933377]
[1756124108027,0.0727281,111420.0,111410.0,0.25933377]
[1756124110049,8.647e-05,111420.0,111410.0,0.44098086]
[1756124110259,8.647e-05,111420.0,111410.0,0.44418086]
[1756124110463,8.647e-05,111420.0,111410.0,0.26466377]
[1756124110668,8.647e-05,111420.0,111410.0,0.44418086]
[1756124110879,0.00162647,111420.0,111410.0,0.10966377]
[1756124111056,0.00162647,111420.0,111410.0,0.29151977]
[1756124112242,0.00162647,111420.0,111410.0,0.28946977]
[1756124112442,0.00162647,111420.0,111410.0,0.28626977]
[1756124112845,0.00162647,111420.0,111410.0,0.13130977]
[1756124113082,0.00162647,111420.0,111410.0,0.28626977]
[1756124113286,0.00162647,111420.0,111410.0,0.55444635]
[1756124114055,0.00162647,111420.0,111410.0,0.73396344]
[1756124114287,0.00162647,111420.0,111410.0,0.73716344]
[1756124114437,8.647e-05,111420.0,111410.0,0.73929344]
[1756124119439,0.17945859,111450.0,111410.0,0.73929344]
[1756124119632,0.21540422,111450.0,111420.0,0.28927851]
[1756124119843,0.00046,111430.0,111420.0,0.10966377]
[1756124120047,0.00046,111430.0,111420.0,0.25925377]
[1756124121859,0.18879087,111440.0,111420.0,0.26458377]
[1756124122598,0.21636422,111450.0,111420.0,0.44408454]
[1756124122801,0.17946919,111440.0,111430.0,0.02064902]
[1756124123015,0.17992919,111440.0,111430.0,0.10433377]
[1756124123414,0.00046,111440.0,111430.0,0.10546377]
[1756124123621,0.00046,111440.0,111430.0,0.10333377]
[1756124123840,0.00046,111440.0,111430.0,0.10653377]
[1756124124057,0.00046,111440.0,111430.0,0.10333377]
[1756124124213,0.17992877,111440.0,111430.0,0.10653377]
[1756124124407,0.17992877,111440.0,111430.0,0.10333377]
[1756124125015,0.17992877,111440.0,111430.0,0.37151035]
[1756124125512,0.18192877,111440.0,111430.0,0.37151035]
[1756124125783,0.18192877,111440.0,111430.0,0.52635035]
[1756124126697,0.18192877,111440.0,111430.0,0.37151035]
[1756124126901,0.18288877,111440.0,111430.0,0.52631035]
[1756124127512,0.18192877,111440.0,111430.0,0.52631035]
[1756124128185,0.19597225,111440.0,111430.0,0.52631035]
[1756124130323,0.19597225,111440.0,111430.0,0.52951035]
[1756124130540,0.19597225,111440.0,111430.0,0.52631035]
[1756124131010,0.19597225,111440.0,111430.0,0.25813377]
[1756124131224,0.18192877,111440.0,111430.0,0.25813377]
[1756124132514,0.19878013,111440.0,111430.0,0.25813377]
[1756124132720,0.00481801,111440.0,111430.0,0.25813377]
[1756124132918,0.18708678,111440.0,111430.0,0.26133377]
[1756124133213,0.18508678,111440.0,111430.0,0.26133377]
[1756124133704,0.18026877,111440.0,111430.0,0.26133377]
[1756124134151,0.01404312,111440.0,111430.0,0.26346377]
[1756124136728,0.01404312,111440.0,111430.0,0.44294864]
[1756124136933,0.01404312,111440.0,111430.0,0.26346377]
[1756124137167,0.01404312,111440.0,111430.0,0.44294864]
[1756124137521,0.01404312,111440.0,111430.0,0.29043477]
[1756124137717,0.01404312,111440.0,111430.0,0.29048477]
[1756124137922,0.01404312,111440.0,111430.0,0.29000477]
[1756124138587,0.19351189,111440.0,111430.0,0.13768477]
[1756124138773,0.19431189,111440.0,111430.0,0.26290377]
[1756124139137,0.19431189,111440.0,111430.0,0.26503377]
[1756124140093,0.01404312,111440.0,111430.0,0.26503377]
[1756124140275,0.19351189,111440.0,111430.0,0.26503377]
[1756124140475,0.19431189,111440.0,111430.0,0.26503377]
[1756124140892,0.01404312,111440.0,111430.0,0.26503377]
[1756124142166,0.01404312,111440.0,111430.0,0.44451864]
[1756124142812,0.01404312,111440.0,111430.0,0.71271864]
[1756124143248,0.01404312,111440.0,111430.0,0.73968964]
[1756124143486,0.1888989,111460.0,111430.0,0.73968964]
[1756124143710,0.18031789,111460.0,111450.0,0.01744902]
[1756124143913,0.18031789,111460.0,111450.0,0.26384377]
[1756124144315,0.1905882,111460.0,111450.0,0.26384377]
[1756124144763,0.1897882,111460.0,111450.0,0.26384377]
[1756124144966,0.1907882,111460.0,111450.0,0.26384377]
[1756124145372,0.1905882,111460.0,111450.0,0.26384377]
[1756124146361,0.20462867,111460.0,111450.0,0.26384377]
[1756124146764,0.0149218,111460.0,111450.0,0.53204377]
[1756124146979,0.0159218,111460.0,111450.0,0.53204377]
[1756124147178,0.0159218,111460.0,111450.0,0.55901077]
[1756124147593,0.0159218,111460.0,111450.0,0.47026343]
[1756124148124,0.0159218,111460.0,111450.0,0.29081077]
[1756124148325,0.0149218,111460.0,111450.0,0.29081077]
[1756124148733,0.0149218,111460.0,111450.0,0.13637077]
[1756124148952,0.19435836,111460.0,111450.0,0.29081077]
[1756124149469,0.19435836,111460.0,111450.0,0.13637077]
[1756124149665,0.19435836,111460.0,111450.0,0.29081077]
[1756124149840,0.0149218,111460.0,111450.0,0.29081077]
[1756124150694,0.0149218,111460.0,111450.0,0.29181077]
[1756124151345,0.00088133,111460.0,111450.0,0.29181077]
[1756124151682,0.00088133,111460.0,111450.0,0.56001077]
[1756124152876,0.18031789,111460.0,111450.0,0.40557077]
[1756124153081,0.18031789,111460.0,111450.0,0.55993077]
[1756124153297,0.00088133,111460.0,111450.0,0.55993077]
[1756124153498,0.18031789,111460.0,111450.0,0.55993077]
[1756124153943,0.18111789,111460.0,111450.0,0.55989077]
[1756124154138,0.18111789,111460.0,111450.0,0.40557077]
[1756124154339,0.18111789,111460.0,111450.0,0.53086377]
[1756124155396,0.18111789,111460.0,111450.0,0.53288377]
[1756124155802,0.18111789,111460.0,111450.0,0.52781377]
[1756124156213,0.18111789,111460.0,111450.0,0.37353377]
[1756124156414,0.18111789,111460.0,111450.0,0.52781377]
[1756124157018,0.18031789,111460.0,111450.0,0.53288377]
[1756124158183,0.18111789,111460.0,111450.0,0.53288377]
[1756124158350,0.18031789,111460.0,111450.0,0.53288377]
[1756124160542,0.18111789,111460.0,111450.0,0.37353377]
[1756124160736,0.18111789,111460.0,111450.0,0.52785377]
[1756124161158,0.18111789,111460.0,111450.0,0.53090377]
[1756124162610,0.18111789,111460.0,111450.0,0.52777377]
[1756124164621,0.18111789,111460.0,111450.0,0.53082377]
[1756124164821,0.18111789,111460.0,111450.0,0.53066377]
[1756124165439,0.18111789,111460.0,111450.0,0.53268377]
[1756124166908,0.18031789,111460.0,111450.0,0.53268377]
[1756124170654,0.19435762,111460.0,111450.0,0.53268377]
[1756124171598,0.18031789,111460.0,111450.0,0.53268377]
[1756124172908,0.23618258,111460.0,111450.0,0.001]
[1756124173139,0.59352089,111460.0,111450.0,0.001]
[1756124173308,5.3324843,111460.0,111450.0,0.001]
[1756124173528,5.3594603,111460.0,111450.0,0.001]
[1756124175955,5.37350216,111460.0,111450.0,0.001]
[1756124177385,5.46038691,111460.0,111450.0,0.001]
[1756124178618,0.17946877,111440.0,111430.0,0.00315]
[1756124178820,0.36992237,111440.0,111430.0,0.00527]
[1756124179020,0.36992237,111440.0,111430.0,0.00315]
[1756124179521,0.41094357,111440.0,111430.0,0.00315]
[1756124179721,0.41094357,111440.0,111430.0,0.00527]
[1756124179924,0.25718357,111440.0,111430.0,0.00527]
[1756124180133,0.41090357,111440.0,111430.0,0.00527]
[1756124180681,0.41090357,111440.0,111430.0,5e-05]
[1756124181093,0.75140357,111440.0,111430.0,5e-05]
[1756124181303,0.73736037,111440.0,111430.0,5e-05]
[1756124182630,0.58364037,111440.0,111430.0,5e-05]
[1756124182831,5.46786437,111440.0,111430.0,5e-05]
[1756124183040,5.46736437,111440.0,111430.0,5e-05]
[1756124186086,5.48465638,111440.0,111430.0,5e-05]
[1756124186925,5.49870075,111440.0,111430.0,5e-05]
[1756124188711,5.53979669,111440.0,111430.0,5e-05]
[1756124188905,5.62668144,111440.0,111430.0,5e-05]
[1756124189908,5.60988943,111440.0,111430.0,5e-05]
[1756124190156,5.62663393,111440.0,111430.0,5e-05]
[1756124191328,5.47299393,111440.0,111430.0,5e-05]
[1756124191587,5.62609393,111440.0,111430.0,5e-05]
[1756124192467,5.30781964,111440.0,111430.0,0.00217]
[1756124192683,5.46133964,111440.0,111430.0,0.00527]
[1756124192892,5.46213964,111440.0,111430.0,0.00527]
[1756124194490,5.30861964,111440.0,111430.0,0.00527]
[1756124194705,5.46209964,111440.0,111430.0,0.00527]
[1756124194913,5.54896929,111440.0,111430.0,0.00527]
[1756124196510,5.54897411,111440.0,111430.0,0.00527]
[1756124196934,5.54897411,111440.0,111430.0,5e-05]
[1756124197329,5.5573689,111440.0,111430.0,5e-05]
[1756124198332,5.54332453,111440.0,111430.0,5e-05]
[1756124199101,5.54256453,111440.0,111430.0,0.00527]
[1756124199769,5.54258273,111440.0,111430.0,0.00527]
[1756124200086,5.54338273,111440.0,111430.0,0.00527]
[1756124200289,5.52658119,111440.0,111430.0,0.00527]
[1756124200509,5.5433832,111440.0,111430.0,0.00527]
[1756124200713,5.45571355,111440.0,111430.0,0.00527]
[1756124200922,5.45651355,111440.0,111430.0,0.00527]
[1756124201134,5.45651355,111440.0,111430.0,0.00315]
[1756124201354,5.46281944,111440.0,111430.0,0.00315]
[1756124201580,5.47686355,111440.0,111430.0,0.00315]
[1756124201812,5.5637332,111440.0,111430.0,0.00315]
[1756124202033,5.5433832,111440.0,111430.0,5e-05]
[1756124202253,5.54969298,111440.0,111430.0,0.00329]
[1756124202718,5.54889298,111440.0,111430.0,0.00535]
[1756124202939,5.54969298,111440.0,111430.0,0.00535]
[1756124203117,5.54969298,111440.0,111430.0,5e-05]
[1756124203899,5.54969298,111440.0,111430.0,0.00329]
[1756124204919,5.54970823,111440.0,111430.0,0.00329]
[1756124205075,5.56375236,111440.0,111430.0,0.00329]
[1756124205480,5.56375236,111440.0,111430.0,5e-05]
[1756124206055,5.47688271,111440.0,111430.0,0.00535]
[1756124206458,5.32336271,111440.0,111430.0,0.00535]
[1756124206661,5.47708271,111440.0,111430.0,0.00535]
[1756124206866,5.47709004,111440.0,111430.0,0.00535]
[1756124208300,5.47709004,111440.0,111430.0,0.00329]
[1756124208490,5.56395969,111440.0,111430.0,0.00535]
[1756124209167,5.56315969,111440.0,111430.0,0.00535]
[1756124209386,5.56395969,111440.0,111430.0,0.00535]
[1756124209532,5.47629004,111440.0,111430.0,0.00535]
[1756124209725,0.74580297,111440.0,111430.0,0.00535]
[1756124213070,0.74580724,111440.0,111430.0,0.00535]
[1756124214325,0.74572724,111440.0,111430.0,0.00535]
[1756124215677,0.73168311,111440.0,111430.0,0.00535]
[1756124216305,0.73168721,111440.0,111430.0,0.00535]
[1756124216476,0.7253647,111440.0,111430.0,0.00535]
[1756124216708,0.73168697,111440.0,111430.0,0.00535]
[1756124217661,0.57804697,111440.0,111430.0,0.00535]
[1756124217856,0.73156697,111440.0,111430.0,0.00535]
[1756124218806,0.74561079,111440.0,111430.0,0.00535]
[1756124219532,0.73719023,111440.0,111430.0,0.00535]
[1756124219861,0.73086851,111440.0,111430.0,0.00535]
[1756124220055,0.74561919,111440.0,111430.0,0.00535]
[1756124220643,0.73929747,111440.0,111430.0,0.00535]
[1756124221039,0.7596753,111440.0,111430.0,5e-05]
[1756124222006,0.76649691,111440.0,111430.0,5e-05]
[1756124222424,0.75245309,111440.0,111430.0,5e-05]
[1756124222623,5.56988184,111440.0,111430.0,5e-05]
[1756124222825,5.58930305,111440.0,111430.0,5e-05]
[1756124224334,5.59130305,111440.0,111430.0,5e-05]
[1756124225075,5.60534837,111440.0,111430.0,5e-05]
[1756124226471,5.45182837,111440.0,111430.0,5e-05]
[1756124226672,5.60484837,111440.0,111430.0,5e-05]
[1756124226890,5.41436464,111440.0,111430.0,5e-05]
[1756124227071,5.59383341,111440.0,111430.0,5e-05]
[1756124227266,5.59433341,111440.0,111430.0,5e-05]
[1756124227611,5.59387341,111440.0,111430.0,5e-05]
[1756124227808,5.59437341,111440.0,111430.0,5e-05]
[1756124228492,5.56908653,111440.0,111430.0,5e-05]
[1756124228694,5.59434773,111440.0,111430.0,5e-05]
[1756124229073,5.58803117,111440.0,111430.0,5e-05]
[1756124229302,5.59434773,111440.0,111430.0,5e-05]
[1756124230127,5.57492652,111440.0,111430.0,5e-05]
[1756124230482,5.59432685,111440.0,111430.0,5e-05]
[1756124231089,5.57492652,111440.0,111430.0,5e-05]
[1756124232141,5.42136652,111440.0,111430.0,5e-05]
[1756124232356,5.57484652,111440.0,111430.0,5e-05]
[1756124232564,5.62024009,111440.0,111430.0,5e-05]
[1756124232778,0.17951709,111410.0,111400.0,0.15307]
[1756124232997,0.36890035,111410.0,111400.0,0.15507]
[1756124234094,0.40993291,111410.0,111400.0,0.15515647]
[1756124234314,0.41073291,111410.0,111400.0,0.15615647]
[1756124234544,0.75073291,111410.0,111400.0,0.15415647]
[1756124234778,0.75352291,111410.0,111400.0,0.15113647]
[1756124235569,0.75352291,111410.0,111400.0,0.15415647]
[1756124235762,0.75352291,111410.0,111400.0,0.15113647]
[1756124236030,0.75352291,111410.0,111400.0,0.15013647]
[1756124236510,0.75452291,111410.0,111400.0,0.15013647]
[1756124236860,0.75451214,111410.0,111400.0,0.15013647]
[1756124237077,0.75383214,111410.0,111400.0,0.15515647]
[1756124237282,0.73780635,111410.0,111400.0,0.15515647]
[1756124237532,0.39780635,111410.0,111400.0,0.15315647]
[1756124237676,0.39680635,111410.0,111400.0,0.15315647]
[1756124238194,0.41185431,111410.0,111400.0,0.15315647]
[1756124238807,5.15921705,111410.0,111400.0,0.15315647]
[1756124239170,5.14239831,111410.0,111400.0,0.15315647]
[1756124239875,5.14239831,111410.0,111400.0,0.15013647]
[1756124240340,5.22928306,111410.0,111400.0,0.15013647]
[1756124241024,5.22928306,111410.0,111400.0,0.15515647]
[1756124241464,5.22928306,111410.0,111400.0,0.15315647]
[1756124241889,5.22928306,111410.0,111400.0,0.15515647]
[1756124242100,5.22928306,111410.0,111400.0,0.15315647]
[1756124242306,5.2152351,111410.0,111400.0,0.15315647]
[1756124242514,5.0616351,111410.0,111400.0,0.15315647]
[1756124242691,5.2152351,111410.0,111400.0,0.15515647]
[1756124243248,5.2325465,111410.0,111400.0,0.15013647]
[1756124243493,5.25854266,111410.0,111400.0,0.15013647]
[1756124243715,5.27325148,111410.0,111400.0,0.15013647]
[1756124245257,5.23831028,111410.0,111400.0,0.15013647]
[1756124245684,5.25235953,111410.0,111400.0,0.15013647]
[1756124246147,5.25285953,111410.0,111400.0,0.15013647]
[1756124246369,5.09929953,111410.0,111400.0,0.15013647]
[1756124246594,5.26072141,111410.0,111400.0,0.15013647]
[1756124246744,5.26072141,111410.0,111400.0,0.15315647]
[1756124246939,5.26072141,111410.0,111400.0,0.15415647]
[1756124247416,5.26072141,111410.0,111400.0,0.15113647]
[1756124247993,5.24601575,111410.0,111400.0,0.15415647]
[1756124248194,5.22920435,111410.0,111400.0,0.15415647]
[1756124248442,5.25231132,111410.0,111400.0,0.15615647]
[1756124248666,5.25151132,111410.0,111400.0,0.15615647]
[1756124248893,5.25231132,111410.0,111400.0,0.15615647]
[1756124249106,5.25231132,111410.0,111400.0,0.15415647]
[1756124249342,5.26071409,111410.0,111400.0,0.15415647]
[1756124250058,5.26071409,111410.0,111400.0,0.15615647]
[1756124250473,5.26071409,111410.0,111400.0,0.15415647]
[1756124250667,5.10719342,111410.0,111400.0,0.15615647]
[1756124250899,5.26071342,111410.0,111400.0,0.15615647]
[1756124251100,5.26071357,111410.0,111400.0,0.15615647]
[1756124251737,5.26071499,111410.0,111400.0,0.15615647]
[1756124251942,5.26071499,111410.0,111400.0,0.15415647]
[1756124252156,5.24666574,111410.0,111400.0,0.15415647]
[1756124252588,5.24666574,111410.0,111400.0,0.15615647]
[1756124253502,5.24666574,111410.0,111400.0,0.15415647]
[1756124254130,5.24666574,111410.0,111400.0,0.15615647]
[1756124254131,5.24586574,111410.0,111400.0,0.15615647]
[1756124255104,5.10639479,111410.0,111400.0,0.15615647]
[1756124255331,5.05578596,111410.0,111400.0,0.15615647]
[1756124255608,5.20930596,111410.0,111400.0,0.15615647]
[1756124257311,5.21010596,111410.0,111400.0,0.15113647]
[1756124257543,5.21060596,111410.0,111400.0,0.15113647]
[1756124257772,5.33188169,111410.0,111400.0,0.15113647]
[1756124258260,5.33820815,111410.0,111400.0,0.15113647]
[1756124258747,5.67820824,111410.0,111400.0,0.15113647]
[1756124258967,5.49819208,111410.0,111400.0,0.15415647]
[1756124259176,5.65091208,111410.0,111400.0,0.15615647]
[1756124259394,5.56404243,111410.0,111400.0,0.15615647]
[1756124260210,0.05885761,111410.0,111400.0,0.26049024]
[1756124260462,0.19456614,111410.0,111400.0,0.26049024]
[1756124260874,0.001,111410.0,111400.0,0.26049024]
[1756124261304,0.17950161,111420.0,111410.0,0.01744902]
[1756124261424,0.17950161,111420.0,111410.0,0.01959902]
[1756124261636,0.17950161,111420.0,111410.0,0.02279902]
[1756124261837,0.2154692,111430.0,111410.0,0.10968377]
[1756124262051,0.33300534,111430.0,111420.0,0.02064902]
[1756124262255,0.2154202,111440.0,111420.0,0.02279902]
[1756124262475,0.17948487,111430.0,111420.0,0.01959902]
[1756124263124,0.17948487,111430.0,111420.0,0.02279902]
[1756124263783,0.23573183,111430.0,111420.0,0.02279902]
[1756124264195,0.17948487,111430.0,111420.0,0.02279902]
[1756124266873,0.38318468,111440.0,111420.0,0.10968377]
[1756124267092,0.38318468,111440.0,111430.0,0.0032]
[1756124267319,0.38318468,111440.0,111430.0,0.00535]
[1756124267543,0.01404448,111440.0,111430.0,0.10968377]
[1756124267769,0.01404448,111440.0,111430.0,0.11192733]
[1756124267979,0.19551325,111440.0,111430.0,0.10968377]
[1756124268193,0.19351325,111440.0,111430.0,0.00535]
[1756124270681,0.19351325,111440.0,111430.0,0.00635]
[1756124271118,0.19351325,111440.0,111430.0,0.00735]
[1756124271595,0.34727325,111440.0,111430.0,0.00735]
[1756124273059,0.34727325,111440.0,111430.0,0.00535]
[1756124273326,0.34727325,111440.0,111430.0,0.00635]
[1756124274046,0.34727325,111440.0,111430.0,0.00935]
[1756124274262,0.40462489,111440.0,111430.0,0.00935]
[1756124274466,0.40462489,111440.0,111430.0,0.00615]
[1756124274885,0.40462489,111440.0,111430.0,0.00715]
[1756124275099,0.34925325,111440.0,111430.0,0.00715]
[1756124275519,0.34925325,111440.0,111430.0,0.005]
[1756124275520,0.35243325,111440.0,111430.0,0.005]
[1756124275723,0.34925325,111440.0,111430.0,0.005]
[1756124275900,0.34925325,111440.0,111430.0,0.004]
[1756124276102,0.34925325,111440.0,111430.0,0.00935]
[1756124276309,0.34925325,111440.0,111430.0,0.00635]
[1756124276664,0.34925325,111440.0,111430.0,0.00735]
[1756124276867,0.33520877,111440.0,111430.0,0.00735]
[1756124277334,0.33520877,111440.0,111430.0,0.00835]
[1756124277535,0.33520877,111440.0,111430.0,0.003]
[1756124277536,0.39287197,111440.0,111430.0,0.003]
[1756124277740,0.41984997,111440.0,111430.0,0.003]
[1756124279708,0.41984997,111440.0,111430.0,0.001]
[1756124280708,0.26608997,111440.0,111430.0,0.001]
[1756124280957,0.20842677,111440.0,111430.0,0.001]
[1756124281160,0.17595708,111440.0,111430.0,0.001]
[1756124281367,0.35742585,111440.0,111430.0,0.001]
[1756124281582,0.35542585,111440.0,111430.0,0.001]
[1756124283468,0.34138159,111440.0,111430.0,0.00635]
[1756124283899,0.34138159,111440.0,111430.0,0.001]
[1756124284116,0.18790159,111440.0,111430.0,0.001]
[1756124284310,0.35814808,111440.0,111430.0,0.001]
[1756124284524,0.23853896,111440.0,111430.0,0.001]
[1756124284733,0.39201896,111440.0,111430.0,0.001]
[1756124285151,0.23853896,111440.0,111430.0,0.001]
[1756124285364,0.39201896,111440.0,111430.0,0.001]
[1756124286446,0.36012808,111440.0,111430.0,0.00635]
[1756124286656,0.34336159,111440.0,111430.0,0.0042]
[1756124286873,0.36014292,111440.0,111430.0,0.00635]
[1756124287077,0.36014292,111440.0,111430.0,0.0042]
[1756124287279,0.37418705,111440.0,111430.0,0.001]
[1756124287687,0.37418705,111440.0,111430.0,0.0042]
[1756124287869,0.37418705,111440.0,111430.0,0.00635]
[1756124289209,0.38259768,111440.0,111430.0,0.00635]
[1756124289358,0.42001174,111440.0,111430.0,0.00635]
[1756124290621,0.38061768,111440.0,111430.0,0.00635]
[1756124290828,0.37218486,111440.0,111430.0,0.00635]
[1756124291058,0.35814073,111440.0,111430.0,0.00635]
[1756124291556,0.20466073,111440.0,111430.0,0.00635]
[1756124292645,0.01678133,111440.0,111430.0,0.11068377]
[1756124294073,0.01678133,111440.0,111430.0,0.11292733]
[1756124294272,0.01678133,111440.0,111430.0,0.55836864]
[1756124295939,0.01678133,111440.0,111430.0,0.56036864]
[1756124296348,0.18880838,111460.0,111440.0,0.01744902]
[1756124296552,0.36753301,111460.0,111450.0,0.00511]
[1756124296996,0.36753119,111460.0,111450.0,0.00511]
[1756124297559,0.38205402,111460.0,111450.0,0.00511]
[1756124297987,0.19364564,111460.0,111450.0,0.02255902]
[1756124298194,0.3730822,111460.0,111450.0,0.10944377]
[1756124298855,0.3730822,111460.0,111450.0,0.11044377]
[1756124299272,0.13182542,111460.0,111450.0,0.11268692]
[1756124301348,0.17943656,111460.0,111450.0,0.11268692]
[1756124302017,0.17943656,111460.0,111450.0,0.11468692]
[1756124303490,0.34245351,111470.0,111450.0,0.11468692]
[1756124303710,0.34253985,111470.0,111460.0,0.00311]
[1756124304000,0.34253985,111470.0,111460.0,0.00511]
[1756124304760,0.18909985,111470.0,111460.0,0.00511]
[1756124304960,0.18909985,111470.0,111460.0,0.02480197]
[1756124305162,0.2031393,111470.0,111460.0,0.02480197]
[1756124306255,0.20309328,111470.0,111460.0,0.02480197]
[1756124306877,0.20309328,111470.0,111460.0,0.02580197]
[1756124307079,0.20309328,111470.0,111460.0,0.02680197]
[1756124307978,0.01452579,111470.0,111460.0,0.29312328]
[1756124308116,0.01452579,111470.0,111460.0,0.29088033]
[1756124309539,0.01452579,111470.0,111460.0,0.44608033]
[1756124309753,0.01452579,111470.0,111460.0,0.29488033]
[1756124309963,0.01452579,111470.0,111460.0,0.44908033]
[1756124310836,0.01452579,111470.0,111460.0,0.78708033]
[1756124311067,0.01452579,111470.0,111460.0,0.78924033]
[1756124311491,0.00048634,111470.0,111460.0,0.78924033]
[1756124311691,0.00048634,111470.0,111460.0,0.78928033]
[1756124312343,0.00048634,111470.0,111460.0,0.78428033]
[1756124312769,0.00048634,111470.0,111460.0,0.79028033]
[1756124313581,0.00048634,111470.0,111460.0,0.79528033]
[1756124314791,0.00048634,111470.0,111460.0,0.79520033]
[1756124316196,0.00048634,111470.0,111460.0,1.89273459]
[1756124316328,0.00048634,111470.0,111460.0,1.91969559]
[1756124316740,0.00048634,111470.0,111460.0,2.16969559]
[1756124317263,0.00048634,111470.0,111460.0,2.16669559]
[1756124317531,0.00048634,111470.0,111460.0,2.16169559]
[1756124317999,0.00048634,111470.0,111460.0,2.16369559]
[1756124318845,0.00048634,111470.0,111460.0,2.16389559]
[1756124320003,0.00048634,111470.0,111460.0,2.16789559]
[1756124320208,0.00048634,111470.0,111460.0,2.27657559]
[1756124320515,0.00048634,111470.0,111460.0,2.43109559]
[1756124320730,0.00048634,111470.0,111460.0,2.83809559]
[1756124321525,0.00048634,111470.0,111460.0,2.93278559]
[1756124321736,0.00048634,111470.0,111460.0,2.83809559]
[1756124323188,0.00048634,111470.0,111460.0,3.20974618]
[1756124323415,0.01,111480.0,111470.0,0.56458315]
[1756124323645,0.01,111480.0,111470.0,1.51120442]
[1756124323818,0.01,111480.0,111470.0,2.00414442]
[1756124324019,0.01,111480.0,111470.0,1.3007779]
[1756124324229,0.01,111480.0,111470.0,1.3277349]
[1756124324887,0.01,111480.0,111470.0,1.3307349]